Cogmind - Beta 13 @@@ ROGUE MODE // 2024.07.10 @ 20:33:43 Player: lexi^-^ Result: Destroyed by G-34 Mercenary with Small Laser Performance ------------- Evolutions (1) 500 Regions Visited (3) 600 Robots Destroyed (23) 115 Value Destroyed (474) 474 Prototype IDs (4) 80 Alien Tech Used (0) 0 Bonus (2) 2 TOTAL SCORE: 1771 Bonus ------- High Alert Combat Kills 2 Cogmind --------- Core Integrity 0/400 Matter 229/300 Energy 100/100 System Corruption 0% Temperature Cool (6) Movement Rolling (95) Location -9/Materials Parts ------- > --- POWER (1) -------- (None) > --- PROPULSION (2) --- Compact Wheel Armored Wheel > --- UTILITY (4) ------ Heat Sink Small Storage Unit Improved Terrain Scanner Terrain Scan Processor > --- WEAPON (2) ------- Autogun Autogun > --- INVENTORY (8) ---- Wheel Wheel Signal Interpreter Light Armor Plating Peak State ------------ > --- POWER ------------ Light Ion Engine > --- PROPULSION ------- Compact Wheel Armored Wheel > --- UTILITY ---------- Heat Sink Small Storage Unit Improved Terrain Scanner Terrain Scan Processor > --- WEAPON ----------- Autogun Autogun > --- INVENTORY -------- Wheel Wheel Signal Interpreter Light Armor Plating [Rating: 15] Favorites ----------- Power Light Ion Engine Engine Light Ion Engine Propulsion Wheel Wheel Wheel Utility Small Storage Unit Device Heat Sink Storage Small Storage Unit Processor Terrain Scan Processor Weapon EM Pulse Gun Energy Gun EM Pulse Gun Ballistic Gun Autogun Ballistic Cannon Light Cannon Build | -11 -10 -10 -9 ------- Run | Yrd Mat Min Mat Slots Evolved 2 | . . . 2 Power . | . . . . Propulsion . | . . . . Utility 2 | . . . 2 Weapon . | . . . . Parts Attached 25 | 7 4 . 14 Power 3 | 1 . . 2 Engine 3 | 1 . . 2 Core . | . . . . Reactor . | . . . . Propulsion 8 | 2 2 . 4 Treads . | . . . . Leg . | . . . . Wheel 8 | 2 2 . 4 Hover . | . . . . Flight . | . . . . Utility 5 | 1 1 . 3 Device 3 | . 1 . 2 Storage 1 | 1 . . . Processor 1 | . . . 1 Hackware . | . . . . Protection . | . . . . Artifact . | . . . . Weapon 9 | 3 1 . 5 Energy Gun 6 | 3 1 . 2 Energy Cannon . | . . . . Ballistic Gun 2 | . . . 2 Ballistic Cannon 1 | . . . 1 Launcher . | . . . . Special Weapon . | . . . . Impact Weapon . | . . . . Slashing Weapon . | . . . . Piercing Weapon . | . . . . Special Melee Weapon . | . . . . Unidentified Prototypes . | . . . . Parts Lost 6 | . . . 6 Power 3 | . . . 3 Propulsion 1 | . . . 1 Utility . | . . . . Weapon 2 | . . . 2 Highest Loss Streak 2 | . . . 2 To Critical Strikes . | . . . . Average Slot Usage (%) 94 | . 91 100 93 Engine 11 | . 14 14 9 Wheel 24 | . 27 28 21 Device 15 | . 6 14 20 Storage 12 | . 14 14 11 Processor 5 | . . . 9 Energy Gun 14 | . 28 28 3 Ballistic Gun 7 | . . . 14 Ballistic Cannon 1 | . . . 3 Naked Turns . | . . . . Heaviest Build 16 | 12 13 13 16 Greatest Support 32 | 20 20 20 32 Greatest Overweight (x) 5 | . 1 . 5 Average Overweight (x) . | . . . . Largest Inventory Capacity 8 | 8 8 8 8 Average Capacity 7 | 7 8 8 8 Most Carried 6 | 5 5 5 6 Average Carried 4 | 2 5 5 4 Final Capacity 8 | 8 8 8 8 Final Carried 5 | 5 5 5 4 Class Distribution -------------------- 57% | Mutant 42% | Scavenger-Mutant Dominant Class ---------------- Mutant | -10/Materials Mutant | -10/Mines Scavenger-Mutant | -9/Materials Resources | -11 -10 -10 -9 ----------- Run | Yrd Mat Min Mat Matter Collected 554 | 200 77 24 253 Remotely . | . . . . Salvage Created 797 | 31 367 . 399 Parts 57 | 6 26 . 25 Haulers Intercepted 1 | . 1 . . Recyclers Shooed 2 | 2 . . . Parts Field Recycled . | . . . . Retrieved Matter . | . . . . Parts Self-Destructed . | . . . . Prevented . | . . . . Kills | -11 -10 -10 -9 ------- Run | Yrd Mat Min Mat Combat Hostiles Destroyed 11 | . 5 . 6 Guns 7 | . 3 . 4 Cannons 2 | . . . 2 AOE 2 | . 2 . . Classes Destroyed 9 | 1 6 . 2 Builder 4 | . 3 . 1 Tunneler 2 | 2 . . . Hauler 1 | . 1 . . Recycler 2 | . 1 . 1 Operator 2 | . 1 . 1 Watcher 1 | . . . 1 Swarmer 3 | . 2 . 1 Grunt 5 | . 3 . 2 Sentry 3 | . . . 3 Best Kill Streak 10 | 1 10 . 4 Combat Bots Only 5 | . 5 . 2 Max Kills in Single Turn 1 | 1 1 . 1 Gunslinging . | . . . . Exploded 1 | . 1 . . Melee . | . . . . Uniques/NPCs Destroyed . | . . . . Combat | -11 -10 -10 -9 -------- Run | Yrd Mat Min Mat Hostile Shots Fired 126 | . 34 . 92 Missed 35 | . 8 . 27 Damage Taken 1242 | . 222 . 1020 Core 479 | . 70 . 409 Absorbed by Shields . | . . . . Regen/Repaired (Parts) 44 | . . . 44 Core Remaining (%) 86 | 100 . 72 . Volleys Fired 66 | 15 18 . 33 Largest 2 | 1 2 . 2 Hottest 80 | 40 80 . 80 Shots Fired 116 | 15 36 . 65 Gun 105 | 15 36 . 54 Cannon 11 | . . . 11 Launcher . | . . . . Special . | . . . . Kinetic 51 | . . . 51 Thermal 16 | 15 . . 1 Explosive . | . . . . Electromagnetic 49 | . 36 . 13 Robot Hit Streak 7 | 3 4 . 7 Robot Miss Streak 7 | 3 7 . 5 Penetration Max . | . . . . Secondary Targets 1 | . 1 . . Max Gunslinging Chain 1 | . 1 . . Shots Hit Robots 57 | 8 16 . 33 Core Hits 30 | 3 14 . 13 Critical Kills . | . . . . Critical Parts Destroyed . | . . . . Critical Strikes 2 | . 1 . 1 Blast 1 | . . . 1 Corrupt 1 | . 1 . . Melee Attacks . | . . . . Impact . | . . . . Slashing . | . . . . Piercing . | . . . . Sneak Attacks . | . . . . Combat Hostiles . | . . . . Follow-up Attacks . | . . . . Damage Inflicted 1080 | 89 390 . 601 Guns 835 | 89 269 . 477 Cannons 88 | . . . 88 Explosions 157 | . 121 . 36 Melee . | . . . . Ramming . | . . . . Kinetic 447 | . . . 447 Thermal 258 | 89 121 . 48 Explosive . | . . . . Electromagnetic 375 | . 269 . 106 Impact . | . . . . Slashing . | . . . . Piercing . | . . . . Highest Corruption . | . . . . Average Corruption . | . . . . Corruption Purged . | . . . . Corruption Blocked . | . . . . Overload Shots . | . . . . Overflow Damage 17 | . . . 17 Projectiles . | . . . . Explosions 17 | . . . 17 Melee . | . . . . Knockbacks . | . . . . Impact . | . . . . Kinetic . | . . . . Secondary . | . . . . Self-Inflicted Damage 231 | . . . 231 Shots 3 | . . . 3 Rammed . | . . . . Targets Rammed . | . . . . Kicked . | . . . . Crushed . | . . . . Highest Temperature 316 | 20 316 . 26 Average Temperature 129 | 20 158 . 9 Received Heat Transfer 366 | . 30 . 336 Siege Activations . | . . . . Robots Corrupted . | . . . . Combat Hostiles . | . . . . Parts Fried 1 | . 1 . . Impact Corruptions . | . . . . Robots Melted . | . . . . Combat Hostiles . | . . . . Parts Melted . | . . . . Heat Transferred 425 | 200 200 . 25 Parts Sabotaged . | . . . . Parts Stolen . | . . . . Parts Stripped . | . . . . Power Chain Reactions 4 | . 3 . 1 Alert | -11 -10 -10 -9 ------- Run | Yrd Mat Min Mat Peak Influence 466 | 10 179 69 466 Initial 69 | . 6 69 26 Average 155 | 4 120 69 238 Maximum Alert Level 2 | . . . 2 Low Security (%) 68 | 100 100 100 35 Level 1 26 | . . . 55 Level 2 4 | . . . 9 Level 3 . | . . . . Level 4 . | . . . . Level 5 . | . . . . High Security . | . . . . Max Security . | . . . . Squads Dispatched 1 | . . . 1 Investigation . | . . . . Extermination . | . . . . Reinforcement 1 | . . . 1 Assault . | . . . . Garrison . | . . . . Intercept . | . . . . Searches Triggered . | . . . . Construction Impeded . | . . . . Haulers Reinforced . | . . . . Active Scanning Responses . | . . . . Cargo Convoy Interrupts . | . . . . Stealth | -11 -10 -10 -9 --------- Run | Yrd Mat Min Mat Distress Signals 5 | . 3 . 2 Communications Jammed . | . . . . Distress Signals . | . . . . Times Spotted 32 | . 7 . 25 Peak Tracking Total 11 | . 4 . 11 Tactical Retreats 3 | . . . 3 Traps | -11 -10 -10 -9 ------- Run | Yrd Mat Min Mat Traps Triggered 1 | . . . 1 Indirectly . | . . . . Trap Hack Attempts . | . . . . Triggered . | . . . . Disarmed . | . . . . Reprogrammed . | . . . . Reused . | . . . . Traps Extracted . | . . . . Installed . | . . . . Triggered . | . . . . Machines | -11 -10 -10 -9 ---------- Run | Yrd Mat Min Mat Machines Disabled 3 | . . . 3 Max in Single Turn 2 | . . . 2 Machines Repaired . | . . . . Machines Dismantled . | . . . . Machines Sabotaged . | . . . . Overloaded Fab Kills . | . . . . Hacking | -11 -10 -10 -9 --------- Run | Yrd Mat Min Mat Machines Accessed 6 | . 3 . 3 Terminals 5 | . 3 . 2 Fabricators . | . . . . Repair Stations 1 | . . . 1 Recycling Units . | . . . . Scanalyzers . | . . . . Garrison Access . | . . . . Total Hacks 15 | . 4 . 11 Successful 9 | . 2 . 7 Failed 6 | . 2 . 4 Catastrophic 2 | . 1 . 1 Database Lockouts . | . . . . Manual . | . . . . Terminals 12 | . 4 . 8 Fabricators . | . . . . Repair Stations 3 | . . . 3 Recycling Units . | . . . . Scanalyzers . | . . . . Garrison Access . | . . . . Terminal Hacks 7 | . 2 . 5 Record 1 | . . . 1 Prototype ID Bank 2 | . 1 . 1 Dispatch Records 1 | . . . 1 Hauler Manifests 1 | . . . 1 Registered Components 2 | . 1 . 1 Fabricator Hacks . | . . . . Repair Station Hacks 2 | . . . 2 Scan Component 1 | . . . 1 Repair 1 | . . . 1 Recycling Unit Hacks . | . . . . Scanalyzer . | . . . . Garrison Access Hacks . | . . . . Unauthorized Hacks . | . . . . Terminals . | . . . . Fabricators . | . . . . Repair Stations . | . . . . Recycling Units . | . . . . Scanalyzers . | . . . . Garrison Access . | . . . . Data Cores Recovered 1 | . 1 . . Used . | . . . . Hacking Detections 4 | . 2 . 2 Full Trace Events . | . . . . Feedback Events . | . . . . Feedback Blocked . | . . . . Robot Schematics Acquired . | . . . . Robots Built . | . . . . Authchips . | . . . . Time . | . . . . Total Robot Build Rating . | . . . . Part Schematics Acquired . | . . . . Parts Built . | . . . . Authchips . | . . . . Time . | . . . . Total Part Build Rating . | . . . . Parts Repaired 1 | . . . 1 Time 26 | . . . 26 Parts Recycled . | . . . . Recycled Matter . | . . . . Retrieved Matter . | . . . . Retrieved Components . | . . . . Parts Scanalyzed . | . . . . Part Schematics Acquired . | . . . . Parts Damaged . | . . . . Bothacking | -11 -10 -10 -9 ------------ Run | Yrd Mat Min Mat Used RIF Installer . | . . . . Robots Hacked . | . . . . Non-combat . | . . . . Combat . | . . . . Robot Hacks Applied . | . . . . Relay Couplers Released . | . . . . Fabnet Peak Effective % . | . . . . Robots Rewired . | . . . . Allies Hacked . | . . . . Hacks Repelled . | . . . . Allies | -11 -10 -10 -9 -------- Run | Yrd Mat Min Mat Total Allies . | . . . . Largest Group . | . . . . Highest-Rated Group . | . . . . Highest-Rated Ally . | . . . . Total Orders . | . . . . Ally Attacks . | . . . . Total Damage . | . . . . Kills . | . . . . Allies Corrupted . | . . . . Allies Melted . | . . . . Intel | -11 -10 -10 -9 ------- Run | Yrd Mat Min Mat Robot Analysis Total . | . . . . Derelict Logs Recovered . | . . . . Drone Launches . | . . . . Drone Recoveries . | . . . . Exploration | -11 -10 -10 -9 ------------- Run | Yrd Mat Min Mat Turns Passed 814 | 94 185 141 394 Spaces Moved 591 | 60 125 146 260 Core 4 | 2 . . 2 Treads . | . . . . Legs . | . . . . Wheels 587 | 58 125 146 258 Hover . | . . . . Flight . | . . . . Fastest Speed 50 | 50 80 80 80 Average Speed 85 | 79 80 80 93 Slowest Speed 300 | 80 95 80 300 Overloaded Moves . | . . . . Propulsion Burnouts . | . . . . Robots Hopped . | . . . . Cave-ins Triggered . | . . . . Exploration Rate (%) 30 | 5 35 46 36 Regions Visited 3 Branch Regions 1 Pre-discovered Areas . | . . . . Known Exits Taken . | . . . . Unknown Exits Taken 3 | 1 1 1 . Scrap Searched 1 | . . 1 . Spaces Dug . | . . . . Terrain Destroyed 43 | . 8 . 35 Melee . | . . . . Projectile . | . . . . AOE 43 | . 8 . 35 Terrain Rammed . | . . . . Walls Destroyed . | . . . . Machines Disabled . | . . . . Actions | -11 -10 -10 -9 --------- Run | Yrd Mat Min Mat Total 784 | 88 172 169 355 Wait 82 | . 24 24 34 Move 588 | 59 124 145 260 Hop . | . . . . Pick Up 13 | 6 . . 7 Fast Attach 15 | 6 3 . 6 Attach 8 | . . . 8 Detach 1 | . . . 1 Swap 2 | 1 1 . . Drop 9 | 1 2 . 6 Fire 66 | 15 18 . 33 Melee . | . . . . Ram . | . . . . Kick . | . . . . Crush . | . . . . Escape Stasis . | . . . . Rewire . | . . . . Trap . | . . . . Miscellaneous . | . . . . Route ------- -11/Scrapyard -10/Materials -10/Mines (discovered 2 exits: *Mat x2) -9/Materials (discovered 2 exits: [*Min x2]) History --------- Turn | Location | Event 5 | -11/Scrapyard | Discovered new exit (range 15) 95 | -11/Scrapyard | Entered Materials 192 | -10/Materials | Met 8R-AWN 251 | -10/Materials | Discovered new exit (range 15) 280 | -10/Materials | Entered Mines 283 | -10/Mines | Followed 8R-AWN into the Mines 311 | -10/Mines | Build established: Mutant 330 | -10/Mines | Discovered new exit (range 12) 411 | -10/Mines | Discovered new exit (range 11) 417 | -10/Mines | Assembled infested the area 421 | -10/Mines | Entered Materials 421 | -9/Materials | Evolved 2 slots: Utility x2 452 | -9/Materials | Core integrity fell below 50% 508 | -9/Materials | Repaired EM Pulse Gun 519 | -9/Materials | Discovered new exit (range 16) 744 | -9/Materials | Discovered new exit (range 6) 773 | -9/Materials | Build established: Scavenger-Mutant 803 | -9/Materials | Core integrity fell below 20% 815 | -9/Materials | Destroyed by G-34 Mercenary with Small Laser Last Messages --------------- populated by Derelicts. 00738_ K-01 Serf collects debris. 00744_ EXIT=FOUND 00746_ K-01 Serf cleans the Machine. 00746_ K-01 Serf collects debris. 00749_ W-16 Scout sends out distress signal. 00749_ K-01 Serf cleans the Machine. 00751_ K-01 Serf collects debris. 00753_ K-01 Serf cleans the Machine. 00769_ K-01 Serf cleans the Matter Pump. 00778_ Dropped Com. Wheel. 00779_ Acquired Arm. Wheel. 00793_ T-07 Excavator is excavating. 00793_ K-01 Serf cleans the Matter Pump. 00797_ T-07 Excavator is excavating. 00800_ S-10 Pest destroyed. 00811_ Lgt. Ion Engine destroyed. 00813_ Critical hit (Burn: +37). 00814_ T-07 Excavator is excavating. 00814_ K-01 Serf collects debris. Map ----- +----------------------------------------------------+ | ?????????????????????????????????????????????????? | | ?????????????????????????????????????????????????? | | ?????????????????????????????????????????????????? | | ?????????????????????????????????????????????????? | | ?????????????????????????????????????????????????? | | ?????????????????????????????????????????????????? | | ?????????????????????????????????????????????????? | | ?????????????????????????????????????????????????? | | ?????????????????????????????????????????????????? | | ?????????????????????????????????????????????????? | | ????????????????????? ? ?????#???????????????????? | | ???????????????????? ????#??????????????????????? | | ???????????????????? ?? ?#??? ??????????????????? | | ??????? ???????#??###+####??#?????? ????????????? | | ????? ###/?###### ###????????""????????????? | | ????# ##???????? """"??????????? | | ?????? ? # ##????? """"??????????? | | ????? # ## ? ??#???????? | | ????# """ """ #[ ]#???? ^ ?? ????????? | | ?????? """ """ # ##?? """???????????? | | ? ????? """ """ # "## """" "???????? | | ?????? ? # T#? """" #???????? | | ????????# g # "#?? #???????? | | ??? ????# """ """ # #? ?#??????? | | ????? ??# """ """ g ##Y### ^""""????? ????? | | ?""?????# """ """ =%@ """"??????????? | | ????????+ =w s """"??????????? | | ????????# [%s kg g t #??????? | | ????????# """ """ g ## #### #??????? | | ? ?? ? ?# """ """ # t??? ##??????? | | ? ?? ???# """ """ ## ???? #???????? | | ??##??#?# = #####??? +???????? | | ? ? ?? # #?#?#?#?? [= #???????? | | ? ?? ?? # """ """ #####?# [= #???????? | | ????????# """ """ ####### ?#"Y"# ##???????? | | ?????"??# """ """ ? ???"""#?#????????? | | ?"??""? + ?????#?????????????? | | ?"????? # ??????????????????? | | ??""?? # """ """ ###?#??#+????????????????? | | ????? ?# """ """ ##? ? ?? ????????????????? | | ????? # """ """ #??? ?? ???? ?????????????? | | ?????#??# ##? ? ????? ????????????? | | ###?#???# #?#???? ??????????????????? | | #???????# #### ###???"?"?????????????????? | | ##?????### #""" #????????????????????????? | | ??###??#?# #" #?????????? ?#???????????? | | #?#???#??# #"| ####??#??#/#?????????????? | | ?????#???# #"" < #?#????? ? ??????????? | | ?????#???# #"| #?#???? ????????????? | | ?####?##?# #" #??"?? #???????????? | +----------------------------------------------------+ Best States ------------- Heat Dissipation 38 Energy Generation 10 Energy Capacity 125 Matter Stores 300 Matter Capacity 300 Sight Range 16 Terrain Scan Range 16 Terrain Scan Density 85 Evasion (%) 44 Item Schematics ----------------- None Robot Schematics ------------------ None Fabricated ------------ Nothing Alien Tech Used ----------------- None Achievements -------------- None Challenges ------------ None Game ------ Seed SpreadCentriumHumpback Manual? 0 Play Time 00:15:23 Cumulative 43.9 hours Start 2024.07.10 @ 20:18:32 End 2024.07.10 @ 20:33:43 Sessions 1 Manual Loads 0 Difficulty Rogue Special Mode None Game No. 27 Rogue 17 Adventurer 10 Explorer 0 Win Type - Total 0 Types 0/0/0/0/0/0/0/0/0 Lore% 11 Gallery% 30 Achievement% 24 Wizard Run 0 Options --------- Layout 1 ASCII 0 Keyboard 0 Movement Mouse Keybinds 0 Fullscreen 2 Font 24/Smallcaps Map View 50x35 Zoom Use 0% Tactical HUD 1 Map Filters NONE Filters NONE Steam 1 RUN: d2e4e192-3fdd-4610-92e5-4ecad8134724